bitfinex/quotes_SOLUSD_20251202
["timestamp","ask_amount","ask_price","bid_price","bid_amount"]
[1764683356970,1.93846527,130.74,130.71,0.2]
[1764683357176,2.63846527,130.73,130.71,0.2]
[1764683357472,1.93846527,130.72,130.71,0.2]
[1764683357663,10.28840407,130.72,130.71,0.2]
[1764683358063,42.81112915,130.72,130.68,0.2]
[1764683358276,1.93846527,130.69,130.68,0.2]
[1764683358775,0.7,130.69,130.67,0.2]
[1764683358953,2.63846527,130.68,130.67,0.2]
[1764683359148,2.63846527,130.68,130.63,0.2]
[1764683359149,11.09846527,130.68,130.63,0.2]
[1764683359469,1.93846527,130.64,130.63,0.2]
[1764683359673,9.59308866,130.64,130.63,0.2]
[1764683359975,10.29308866,130.64,130.63,0.2]
[1764683360554,8.35462339,130.64,130.63,0.2]
[1764683360759,0.7,130.64,130.63,0.2]
[1764683362251,2.63846527,130.64,130.63,0.2]
[1764683362953,0.7,130.64,130.63,0.2]
[1764683363683,2.63846527,130.64,130.63,0.2]
[1764683364356,0.7,130.64,130.63,0.2]
[1764683365179,10.29308866,130.64,130.63,0.2]
[1764683367386,7.65462339,130.64,130.63,0.2]
[1764683367690,8.34462339,130.64,130.63,0.2]
[1764683368865,7.65354718,130.66,130.63,2.73846527]
[1764683369395,8.34354718,130.66,130.63,2.13846527]
[1764683369614,0.69,130.65,130.63,0.2]
[1764683369967,0.69,130.65,130.63,7.85508031]
[1764683370190,2.62846527,130.67,130.63,7.85508031]
[1764683370399,0.69,130.66,130.63,9.79354558]
[1764683370912,0.69,130.68,130.64,1.93846527]
[1764683371199,0.69,130.67,130.63,10.39354558]
[1764683371793,2.62846527,130.67,130.63,8.45516255]
[1764683371985,0.69,130.67,130.63,10.39362782]
[1764683372576,0.69,130.67,130.63,8.45516255]
[1764683372777,0.69,130.67,130.63,10.39362782]
[1764683373606,8.48,130.7,130.64,1.93846527]
[1764683373805,0.69,130.71,130.68,1.93846527]
[1764683374100,0.69,130.73,130.7,1.93846527]
[1764683374274,0.69,130.73,130.71,1.93846527]
[1764683374694,0.69,130.73,130.7,1.93846527]
[1764683376001,0.69,130.73,130.68,9.08]
[1764683376175,0.69,130.73,130.7,1.93846527]
[1764683376374,0.69,130.73,130.7,3.0293188]
[1764683376589,3.0293188,130.72,130.68,10.6815167]
[1764683376907,3.0293188,130.72,130.67,35.47096588]
[1764683377075,0.69,130.71,130.68,3.0293188]
[1764683378910,0.69,130.71,130.67,36.07096588]
[1764683379908,8.34059913,130.71,130.67,36.07096588]
[1764683380099,3.0293188,130.7,130.66,16.13325202]
[1764683380306,3.7293188,130.7,130.66,78.03325202]
[1764683380554,0.7,130.7,130.66,81.66257082]
[1764683381219,0.7,130.73,130.69,3.0293188]
[1764683381512,3.7293188,130.73,130.69,64.9293188]
[1764683381682,0.66,130.72,130.69,64.9293188]
[1764683382407,7.64949209,130.73,130.69,72.58086974]
[1764683382708,7.64949209,130.73,130.71,3.0293188]
[1764683383303,7.64949209,130.73,130.7,3.6293188]
[1764683383505,7.64903527,130.74,130.7,3.6293188]
[1764683383806,0.66,130.73,130.7,3.6293188]
[1764683384513,0.66,130.73,130.7,11.28021912]
[1764683384887,0.66,130.73,130.7,8.25090032]
[1764683385537,0.66,130.73,130.7,7.65090032]
[1764683386413,3.6893188,130.73,130.7,7.65090032]
[1764683387115,10.67875729,130.73,130.7,7.65090032]
[1764683387417,3.6893188,130.72,130.7,7.65090032]
[1764683387712,0.66,130.72,130.7,7.65090032]
[1764683388513,3.6893188,130.72,130.7,7.65090032]
[1764683388699,0.66,130.71,130.7,7.65090032]
[1764683390207,0.66,130.71,130.69,69.55143159]
[1764683391007,3.6893188,130.71,130.67,69.55248535]
[1764683391202,3.0293188,130.7,130.67,78.03280953]
[1764683391404,3.6893188,130.7,130.67,16.13280953]
[1764683392126,0.66,130.7,130.67,16.13280953]
[1764683392428,0.66,130.69,130.67,16.13280953]
[1764683395435,0.66,130.7,130.67,16.13280953]
[1764683396231,16.308864,130.75,130.67,16.13280953]
[1764683396440,0.66,130.78,130.7,16.308864]
[1764683396651,0.66,130.78,130.71,17.28994492]
[1764683396805,3.0293188,130.77,130.73,8.80994492]
[1764683397113,0.66,130.78,130.72,8.48]
[1764683397114,3.0293188,130.75,130.72,8.48]
[1764683397508,0.66,130.74,130.72,8.48]
[1764683398612,16.74715716,130.74,130.7,16.308864]
[1764683398815,16.74715716,130.74,130.7,8.48]
[1764683398816,8.43837258,130.72,130.7,8.48]
[1764683399007,8.43837258,130.72,130.68,25.11880892]
[1764683399213,9.09837258,130.71,130.68,8.48]
[1764683400219,8.43837258,130.71,130.68,8.48]
[1764683400436,9.09837258,130.71,130.68,8.48]
[1764683400610,8.43837258,130.71,130.67,7.65286599]
[1764683400819,9.09837258,130.7,130.67,16.13286599]
[1764683401032,8.43837258,130.68,130.66,7.65343176]
[1764683401227,8.43837258,130.68,130.66,16.13343176]
[1764683402932,0.66,130.69,130.66,16.13343176]
[1764683403116,9.09837258,130.69,130.66,16.13343176]
[1764683404635,16.75008077,130.69,130.66,16.13343176]
[1764683404852,8.43837258,130.67,130.65,8.48]
[1764683405014,8.31233499,130.68,130.65,8.48]
[1764683405217,8.43837258,130.67,130.65,8.48]
[1764683406931,0.66,130.67,130.65,8.48]
[1764683409538,9.09837258,130.67,130.65,8.48]
[1764683409841,8.31181085,130.69,130.65,25.17196718]
[1764683410054,16.75018343,130.69,130.65,16.7335946]
[1764683410338,0.66,130.68,130.65,16.7335946]
[1764683411645,0.66,130.68,130.65,16.1335946]
[1764683411935,16.09015568,130.69,130.65,16.1335946]
[1764683412238,8.43837258,130.7,130.66,9.03837258]
[1764683412442,9.13837258,130.7,130.67,8.48]
[1764683413243,16.78987027,130.7,130.67,8.48]
[1764683413816,8.43837258,130.68,130.65,61.9]
[1764683414032,8.43837258,130.66,130.63,78.23513004]
[1764683414237,24.788864,130.71,130.65,9.03837258]
[1764683414238,8.35073389,130.71,130.65,9.03837258]
[1764683414543,16.78910647,130.71,130.66,16.91837258]
[1764683414741,0.7,130.7,130.66,16.91837258]
[1764683415042,9.13837258,130.7,130.66,8.48]
[1764683415921,0.7,130.69,130.66,16.13316346]
[1764683416518,8.43837258,130.68,130.65,61.9]
[1764683416732,8.43837258,130.67,130.64,32.44343109]
[1764683417249,9.13837258,130.68,130.64,32.44343109]
[1764683417548,16.79094735,130.68,130.64,32.44343109]
[1764683417847,0.7,130.67,130.64,32.44343109]
[1764683422056,3.03225832,130.66,130.63,7.85506509]
[1764683422545,0.7,130.65,130.63,7.85506509]
[1764683425139,0.7,130.65,130.63,0.2]
[1764683427029,8.35228037,130.68,130.64,28.42112232]
[1764683427450,8.35228037,130.68,130.65,0.6]
[1764683427835,8.35228037,130.68,130.65,3.63225832]
[1764683428036,8.35228037,130.68,130.65,0.6]
[1764683428255,8.35228037,130.68,130.64,28.42112232]
[1764683428846,8.35228037,130.68,130.65,7.6540375]
[1764683429049,0.7,130.67,130.65,7.6540375]
[1764683430236,0.7,130.67,130.64,32.44324398]
[1764683432245,0.7,130.67,130.64,33.04324398]
[1764683434062,0.7,130.67,130.64,23.96324398]
[1764683434244,3.03225832,130.65,130.63,0.2]
[1764683434449,0.7,130.67,130.63,16.93516881]
[1764683434760,0.7,130.67,130.63,19.96742713]
[1764683435568,8.35292488,130.67,130.63,16.93516881]
[1764683435946,0.67,130.66,130.63,16.93516881]
[1764683437861,0.67,130.68,130.64,3.63225832]
[1764683438058,0.67,130.68,130.65,3.03225832]
[1764683438254,0.67,130.76,130.7,8.80994492]
[1764683438459,0.67,130.76,130.72,1.93781837]
[1764683438752,2.60781837,130.76,130.71,8.48]
[1764683438956,0.67,130.75,130.71,10.41781837]
[1764683440452,8.31827059,130.75,130.71,18.06796639]
[1764683440847,1.93781837,130.73,130.69,23.96008238]
[1764683441054,1.93781837,130.73,130.69,32.44008238]
[1764683441252,0.67,130.72,130.69,32.44008238]
[1764683441769,0.67,130.72,130.69,23.96008238]
[1764683441978,8.36925279,130.74,130.7,1.93781837]
[1764683442273,8.36925279,130.74,130.71,1.93781837]
[1764683442274,0.72,130.74,130.71,1.93781837]
[1764683443750,1.93781837,130.72,130.67,26.72668237]
[1764683443953,1.93781837,130.7,130.67,16.13286599]
[1764683444151,1.93781837,130.69,130.65,7.65366584]
[1764683444456,5.05292833,130.7,130.65,7.65366584]
[1764683444647,0.72,130.69,130.65,7.65366584]
[1764683445375,7.65228037,130.68,130.65,7.65366584]
[1764683445785,7.65052406,130.71,130.67,5.05292833]
[1764683446071,0.72,130.69,130.66,5.05292833]
[1764683446374,0.72,130.69,130.65,31.84168793]
[1764683446553,0.72,130.69,130.65,32.44168793]
[1764683446758,0.72,130.69,130.66,5.05292833]
[1764683447369,0.72,130.69,130.67,5.05292833]
[1764683447551,7.65052406,130.71,130.68,7.65228037]
[1764683448106,0.72,130.7,130.68,7.65228037]
[1764683450351,0.72,130.7,130.67,16.13264291]
[1764683451773,0.72,130.7,130.67,21.18557124]
[1764683452179,8.37116733,130.7,130.67,16.13264291]
[1764683452584,8.37116733,130.7,130.67,8.48]
[1764683452886,0.72,130.69,130.67,8.48]
[1764683453183,0.72,130.69,130.66,7.65328341]
[1764683454168,8.37182231,130.69,130.66,7.65328341]
[1764683454480,0.72,130.71,130.68,5.05292833]
[1764683454775,5.05292833,130.72,130.67,5.05292833]
[1764683454982,0.72,130.7,130.67,5.05292833]
[1764683455373,19.12395241,130.73,130.68,5.05292833]
[1764683455578,7.6499388,130.72,130.68,5.65292833]
[1764683455781,8.3699388,130.72,130.68,5.65292833]
[1764683456392,0.72,130.72,130.69,5.05292833]
[1764683456865,0.72,130.72,130.69,5.65292833]
[1764683457394,16.12900574,130.74,130.71,7.65052406]
[1764683457575,0.72,130.73,130.71,7.65052406]
[1764683458290,0.72,130.74,130.71,12.70345239]
[1764683458662,0.72,130.73,130.71,5.05292833]
[1764683458991,12.70087088,130.76,130.71,5.05292833]
[1764683459188,0.72,130.75,130.71,5.65292833]
[1764683459489,0.72,130.75,130.72,7.6499388]
[1764683460290,0.72,130.76,130.73,5.05292833]
[1764683460489,0.72,130.75,130.72,12.70286713]
[1764683461191,8.36727139,130.77,130.73,5.65292833]
[1764683461370,8.36727139,130.77,130.74,7.64876854]
[1764683463411,0.72,130.78,130.74,21.78169687]
[1764683463704,0.72,130.78,130.75,5.05292833]
[1764683463876,5.15292833,130.81,130.76,5.05292833]
[1764683464075,0.72,130.79,130.76,5.05292833]
[1764683464799,5.77292833,130.79,130.76,7.64759865]
[1764683464973,5.05292833,130.78,130.76,7.64759865]
[1764683465170,7.64562093,130.8,130.76,7.64759865]
[1764683465389,13.41854926,130.8,130.76,7.64759865]
[1764683465607,0.72,130.79,130.76,7.64759865]
[1764683466999,2.17894295,130.77,130.71,19.12497032]
[1764683467220,2.17894295,130.75,130.71,19.12497032]
[1764683467590,0.72,130.74,130.71,35.43383432]
[1764683468308,0.72,130.74,130.72,7.64941965]
[1764683468793,7.64760741,130.76,130.72,7.64941965]
[1764683468794,10.54655036,130.76,130.72,7.64941965]
[1764683468995,0.72,130.75,130.72,7.64941965]
[1764683469411,2.89894295,130.75,130.72,7.64941965]
[1764683469606,0.72,130.74,130.72,7.64941965]
[1764683469810,2.89894295,130.74,130.72,7.64941965]
[1764683470005,0.72,130.74,130.72,7.64941965]
[1764683470208,0.72,130.74,130.71,16.308864]
[1764683470502,0.72,130.74,130.71,23.95916282]
[1764683470812,0.72,130.74,130.71,23.9592344]
[1764683474006,8.36883379,130.74,130.71,24.768864]
[1764683474308,0.72,130.74,130.71,24.768864]
[1764683474617,8.36877081,130.74,130.71,24.768864]
[1764683475015,0.72,130.74,130.71,32.41937211]
[1764683475201,10.53676101,130.76,130.71,35.19831506]
[1764683475400,0.71,130.75,130.71,35.19831506]
[1764683476114,0.71,130.75,130.71,53.72462521]
[1764683476416,0.71,130.75,130.71,54.32462521]
[1764683476616,0.71,130.75,130.72,2.17894295]
[1764683476992,0.71,130.77,130.73,10.63894295]
[1764683477192,0.71,130.76,130.73,10.63894295]
[1764683477422,0.71,130.76,130.73,8.46]
[1764683478224,0.71,130.76,130.74,7.64876854]
[1764683478400,0.71,130.76,130.73,16.10915539]
[1764683481800,0.71,130.76,130.73,78.00915539]
[1764683482929,2.88894295,130.76,130.73,78.00915539]
[1764683483332,0.71,130.75,130.73,69.54915539]
[1764683484926,2.88894295,130.75,130.73,61.9]
[1764683485129,0.71,130.76,130.73,61.9]
[1764683485340,0.71,130.76,130.73,70.36]
[1764683485498,7.64642911,130.78,130.75,2.17894295]
[1764683485702,7.64525993,130.8,130.75,10.63894295]
[1764683485897,0.71,130.78,130.75,11.23894295]
[1764683486101,0.71,130.78,130.75,10.63894295]
[1764683487232,0.71,130.78,130.75,18.28668206]
[1764683487533,0.71,130.78,130.75,18.88668206]
[1764683488119,0.71,130.78,130.75,18.28668206]
[1764683490330,0.71,130.78,130.75,8.46]
[1764683490535,2.17894295,130.77,130.74,24.768864]
[1764683490915,2.88894295,130.77,130.74,24.768864]
[1764683491322,2.17894295,130.79,130.74,35.19653803]
[1764683491625,0.71,130.78,130.74,35.19653803]
[1764683492438,0.71,130.78,130.74,53.7184594]
[1764683492730,0.71,130.78,130.74,54.3184594]
[1764683492937,0.71,130.78,130.74,52.13951645]
[1764683493311,2.17894295,130.75,130.68,81.112099]
[1764683493638,2.17894295,130.74,130.69,16.71169485]
[1764683493823,2.17894295,130.74,130.7,8.46]
[1764683494024,2.17894295,130.72,130.67,19.73126598]
[1764683494319,2.17894295,130.72,130.68,16.11185998]
[1764683494515,0.7,130.71,130.68,32.42072398]
[1764683495618,0.7,130.71,130.68,16.71185998]
[1764683495823,0.7,130.71,130.68,33.02072398]
[1764683498919,2.17894295,130.7,130.65,21.31303542]
[1764683499233,2.17894295,130.7,130.66,8.46]
[1764683499433,2.17894295,130.7,130.64,7.65462339]
[1764683499434,2.17894295,130.68,130.64,7.65462339]
[1764683499633,10.53066133,130.69,130.64,18.29356634]
[1764683499840,0.7,130.68,130.64,35.20243034]
[1764683500433,0.7,130.68,130.64,36.05508263]
[1764683502256,3.73159524,130.68,130.64,32.42348739]
[1764683502432,0.72,130.67,130.64,35.45508263]
[1764683503445,0.72,130.67,130.64,32.42348739]
[1764683503622,0.72,130.67,130.64,35.45508263]
[1764683504421,0.72,130.67,130.64,32.42348739]
[1764683504747,0.72,130.67,130.64,35.45508263]
[1764683505631,0.72,130.69,130.66,3.03159524]
[1764683505822,3.03159524,130.72,130.67,11.49159524]
[1764683505823,0.72,130.7,130.67,11.49159524]
[1764683506025,0.72,130.71,130.67,11.49159524]
[1764683507353,0.72,130.71,130.67,19.14413401]
[1764683507947,0.72,130.71,130.67,81.04413401]
[1764683508338,0.72,130.71,130.68,3.03159524]
[1764683509442,0.72,130.71,130.68,10.68366575]
[1764683510150,0.72,130.71,130.68,7.65207051]
[1764683510441,0.72,130.72,130.69,8.48]
[1764683510645,0.72,130.72,130.69,11.51159524]
[1764683510849,0.72,130.72,130.69,8.48]
[1764683511025,0.72,130.72,130.69,11.51159524]
[1764683511347,0.72,130.72,130.69,8.48]
[1764683511524,0.72,130.72,130.69,78.03136072]
[1764683511724,11.4015888,130.72,130.68,8.48]
[1764683512127,0.72,130.71,130.68,8.48]
[1764683512854,0.72,130.71,130.68,16.13218]
[1764683513062,7.64940476,130.73,130.68,19.76377524]
[1764683513355,0.72,130.72,130.68,81.66377524]
[1764683514048,0.72,130.72,130.68,100.79447618]
[1764683515057,8.37016249,130.72,130.68,81.06377524]
[1764683515429,0.72,130.71,130.68,81.06377524]
[1764683515951,7.64953023,130.73,130.69,3.03159524]
[1764683516133,0.72,130.72,130.69,3.03159524]
[1764683516930,8.36994995,130.72,130.69,3.03159524]
[1764683517131,0.72,130.73,130.7,8.46]
[1764683517330,0.72,130.73,130.7,70.36]
[1764683518447,0.72,130.73,130.7,78.01071719]
[1764683519458,8.3693928,130.73,130.7,78.01071719]
[1764683519649,8.3693928,130.73,130.7,70.36]
[1764683519851,0.72,130.72,130.7,70.36]
[1764683520364,0.72,130.72,130.7,61.9]
[1764683520573,7.65052406,130.71,130.7,61.9]
[1764683520937,8.37052406,130.71,130.7,61.9]
[1764683521136,8.36935362,130.73,130.7,61.9]
[1764683521352,0.72,130.72,130.7,61.9]
[1764683522465,8.37045733,130.72,130.7,61.9]
[1764683523336,7.64957787,130.73,130.7,64.93159524]
[1764683523542,8.36957787,130.73,130.7,65.53159524]
[1764683523736,7.64957787,130.73,130.7,64.93159524]
[1764683523954,7.64957787,130.73,130.7,65.53159524]
[1764683524157,8.36957787,130.73,130.7,65.53159524]
[1764683526747,7.64876854,130.74,130.7,65.53159524]
[1764683527064,7.64876854,130.74,130.71,3.63159524]
[1764683527367,7.64876854,130.74,130.71,12.09159524]
[1764683527751,8.36842992,130.75,130.71,12.09159524]
[1764683528352,0.72,130.74,130.71,12.09159524]
[1764683528780,8.36911018,130.74,130.7,19.34045924]
[1764683528958,8.36911018,130.74,130.71,8.46]
[1764683529754,8.36911018,130.74,130.7,24.768864]
[1764683529755,0.72,130.73,130.7,24.768864]
[1764683529953,0.72,130.73,130.7,16.308864]
[1764683530565,0.72,130.74,130.7,19.94045924]
[1764683530759,0.72,130.74,130.7,24.55983049]
[1764683530964,8.36920408,130.74,130.7,16.908864]
[1764683531163,8.36920408,130.74,130.7,27.59153077]
[1764683531754,8.36920408,130.74,130.7,19.94045924]
[1764683532074,0.66,130.73,130.7,16.908864]
[1764683532468,0.66,130.73,130.7,16.308864]
[1764683533376,8.30960409,130.73,130.7,16.908864]
[1764683534577,8.30995427,130.72,130.7,16.308864]
[1764683535775,0.66,130.71,130.69,8.46]
[1764683536779,8.30995427,130.72,130.69,8.46]
[1764683536979,8.30995427,130.72,130.68,86.4610287]
[1764683537184,7.64995427,130.72,130.68,94.9210287]
[1764683537481,8.30995427,130.72,130.68,94.9210287]
[1764683538381,0.66,130.71,130.68,94.9210287]
[1764683538758,8.31068732,130.71,130.68,94.3210287]
[1764683539283,8.31068732,130.71,130.68,94.9210287]
[1764683540076,8.31068732,130.71,130.68,94.3210287]
[1764683540382,0.66,130.71,130.68,94.9210287]
[1764683541298,7.65014319,130.72,130.68,97.35262394]
[1764683541599,8.31014319,130.72,130.68,97.95262394]
[1764683542207,8.31014319,130.72,130.69,3.63159524]
[1764683542501,8.31014319,130.72,130.68,97.95262394]
[1764683543302,8.30876854,130.74,130.69,3.63159524]
[1764683543482,8.30876854,130.74,130.7,8.46]
[1764683543684,0.66,130.73,130.7,9.06]
[1764683544200,8.30944432,130.73,130.7,78.61108388]
[1764683544506,8.30944432,130.73,130.7,81.64267912]
[1764683545007,8.30944432,130.73,130.7,78.01108388]
[1764683545183,26.77021658,130.75,130.7,81.64267912]
[1764683545387,0.66,130.74,130.7,81.64267912]
[1764683548072,0.66,130.74,130.7,81.04267912]
[1764683548486,0.66,130.74,130.7,81.64267912]
[1764683548683,7.64875513,130.75,130.71,19.94045924]
[1764683548884,8.30875513,130.75,130.72,8.46]
[1764683549773,8.30875513,130.75,130.72,16.10982719]
[1764683550190,0.66,130.75,130.72,16.10982719]
[1764683550379,0.66,130.76,130.73,0.6]
[1764683550578,0.66,130.76,130.73,62.5]
[1764683550901,0.66,130.76,130.73,61.9]
[1764683551199,16.12710122,130.77,130.74,0.6]
[1764683551698,16.78710122,130.77,130.74,7.64875162]
[1764683551901,0.66,130.76,130.74,7.64875162]
[1764683552070,16.78710122,130.77,130.74,7.64875162]
[1764683552278,0.66,130.8,130.75,3.63159524]
[1764683552703,0.66,130.8,130.76,9.06]
[1764683552907,0.66,130.8,130.76,12.09159524]
[1764683553327,8.3055328,130.8,130.76,19.73905525]
[1764683553806,0.66,130.79,130.76,19.73905525]
[1764683553990,0.66,130.79,130.76,12.09159524]
[1764683554173,0.66,130.79,130.76,8.46]
[1764683554378,0.66,130.79,130.76,16.1075358]
[1764683555804,0.66,130.79,130.76,16.7075358]
[1764683557083,0.1,130.81,130.76,38.25812767]
[1764683557290,0.76,130.81,130.78,3.03159524]
[1764683557508,0.76,130.81,130.78,11.49159524]
[1764683557797,0.1,130.81,130.79,3.63159524]
[1764683558008,0.1,130.81,130.8,24.768864]
[1764683558202,0.1,130.81,130.8,25.368864]
[1764683558705,0.1,130.81,130.8,28.40045924]
[1764683558883,0.1,130.81,130.8,37.21040416]
[1764683559079,0.1,130.81,130.8,44.85566409]
[1764683559383,0.1,130.83,130.81,8.80994492]
[1764683559598,0.1,130.83,130.82,20.30154016]
[1764683559902,0.1,130.83,130.82,20.80154016]
[1764683560103,0.1,130.83,130.82,23.86374111]
[1764683560603,0.1,130.83,130.82,31.50783222]
[1764683561505,1e-08,130.83,130.82,31.50783222]
[1764683561892,0.1,130.88,130.86,16.308864]
[1764683562093,0.1,130.88,130.82,44.83971033]
[1764683562094,0.1,130.93,130.91,8.80994492]
[1764683562297,0.1,130.93,130.92,8.48]
[1764683562609,0.1,130.93,130.92,10.6531243]
[1764683562914,0.1,130.94,130.92,19.50306922]
[1764683563209,0.1,130.94,130.93,16.308864]
[1764683563589,0.1,130.94,130.93,26.11965728]
[1764683563979,0.1,130.94,130.93,34.9296022]
[1764683564185,0.1,130.96,130.93,18.6207382]
[1764683564383,0.1,130.96,130.95,8.80994492]
[1764683564802,0.1,130.96,130.95,16.308864]
[1764683564803,0.78,130.96,130.95,16.308864]
[1764683565113,0.78,130.96,130.94,16.308864]
[1764683565611,2.1731243,130.95,130.91,10.69904788]
[1764683565811,0.78,130.96,130.91,7.63848704]
[1764683566014,0.68,130.95,130.91,40.25621504]
[1764683566312,0.78,130.96,130.93,2.1731243]
[1764683566498,0.78,130.96,130.94,16.308864]
[1764683566809,0.1,130.96,130.94,16.308864]
[1764683567792,0.68,130.95,130.92,32.48653831]
[1764683568229,0.1,130.96,130.92,34.65966261]
[1764683568412,0.78,130.96,130.92,34.65966261]
[1764683568704,0.1,130.96,130.92,34.65966261]
[1764683568911,0.78,130.96,130.92,34.65966261]
[1764683569307,0.78,130.96,130.92,32.48653831]
[1764683569688,2.9531243,130.96,130.92,32.48653831]
[1764683569894,2.1731243,130.95,130.92,32.48653831]
[1764683570115,2.8531243,130.95,130.92,24.848864]
[1764683570418,2.1731243,130.95,130.92,24.848864]
[1764683570590,0.68,130.94,130.92,24.848864]
[1764683570790,2.1731243,130.93,130.89,8.52]
[1764683571114,2.1731243,130.91,130.88,16.308864]
[1764683571490,0.68,130.9,130.88,16.308864]
[1764683571686,0.68,130.9,130.87,16.16086975]
[1764683571887,0.68,130.95,130.93,16.308864]
[1764683572197,0.68,130.95,130.94,16.308864]
[1764683573310,0.1,130.96,130.94,16.308864]
[1764683573507,0.78,130.96,130.94,16.308864]
[1764683573913,0.1,130.96,130.95,8.52]
[1764683574213,0.1,130.96,130.95,19.50306922]
[1764683574519,0.1,130.96,130.95,22.35629013]
[1764683574693,0.1,130.96,130.95,25.41661681]
[1764683576022,0.1,130.96,130.95,33.05311929]
[1764683577315,7.63144511,131.04,130.95,33.05311929]
[1764683577316,0.68,131.06,130.96,8.80994492]
[1764683577516,0.68,131.05,131.03,16.308864]
[1764683577708,0.68,131.05,131.04,16.308864]
[1764683578329,0.68,131.05,131.02,7.62842284]
[1764683578513,0.68,131.05,131.0,8.52]
[1764683578514,13.33712011,131.05,131.0,37.4883709]
[1764683578909,5.70634521,131.04,131.0,23.94202569]
[1764683579304,0.68,131.03,131.0,23.94202569]
[1764683579701,5.70634521,131.03,131.0,16.308864]
[1764683579914,5.70634521,131.03,130.99,16.308864]
[1764683580116,0.68,131.02,130.99,16.308864]
[1764683580426,0.68,131.02,130.98,12.66099051]
[1764683580634,5.70634521,131.02,130.97,5.02634521]
[1764683580929,5.02634521,130.99,130.96,7.6357117]
[1764683581106,0.68,131.01,130.97,5.02634521]
[1764683581296,0.68,131.02,131.01,16.308864]
[1764683581501,0.68,131.02,131.01,21.33520921]
[1764683582000,0.68,131.04,131.02,7.63242253]
[1764683582200,0.68,131.04,131.03,5.02634521]
[1764683583527,0.68,131.04,131.03,12.65818524]
[1764683584027,0.68,131.06,131.03,7.63184003]
[1764683584215,0.68,131.06,131.04,5.02634521]
[1764683584527,0.68,131.06,131.04,12.65715617]
[1764683585209,5.70634521,131.06,131.02,7.63194903]
[1764683585615,0.68,131.05,131.02,7.63194903]
[1764683587000,8.52,131.08,131.04,5.02634521]
[1764683587001,7.62942163,131.08,131.04,5.02634521]
[1764683587206,0.68,131.06,131.05,5.02634521]
[1764683587816,0.68,131.06,131.04,5.02634521]
[1764683588128,0.68,131.06,131.04,12.65710819]
[1764683588330,5.02634521,131.05,131.02,7.63201142]
[1764683588628,7.72802473,131.1,131.04,5.02634521]
[1764683588803,5.70634521,131.09,131.05,5.02634521]
[1764683589007,5.02634521,131.07,131.02,31.73941295]
[1764683589457,0.68,131.06,131.02,26.71306774]
[1764683589606,0.68,131.06,131.02,31.73941295]
[1764683589805,5.70634521,131.06,131.02,26.71306774]
[1764683590009,0.68,131.06,131.02,31.73941295]
[1764683590241,0.68,131.05,131.02,31.73941295]
[1764683590534,0.68,131.05,131.02,7.63201142]
[1764683590812,0.68,131.05,131.02,12.65835663]
[1764683590929,5.70634521,131.05,131.03,16.308864]
[1764683591325,0.68,131.04,131.03,16.308864]
[1764683592528,5.70634521,131.04,130.94,8.80994492]
[1764683592754,5.02634521,131.01,130.97,5.02634521]
[1764683593064,5.02634521,131.01,130.98,16.308864]
[1764683593359,0.68,131.0,130.97,5.02634521]
[1764683593537,0.68,131.0,130.96,17.32994492]
[1764683593851,0.68,131.0,130.97,5.02634521]
[1764683594053,0.68,131.0,130.96,5.02634521]
[1764683594259,5.02634521,130.99,130.96,7.63591936]
[1764683594463,5.02634521,130.99,130.94,24.11905943]
[1764683594658,0.68,130.98,130.95,16.308864]
[1764683594855,5.70634521,130.98,130.93,13.54634521]
[1764683595163,5.70634521,130.98,130.93,40.27791775]
[1764683595366,5.70634521,130.97,130.93,40.27791775]
[1764683595659,5.02634521,130.95,130.92,7.63805719]
[1764683596043,0.68,130.96,130.92,12.6644024]
[1764683596044,0.68,130.94,130.92,12.6644024]
[1764683596257,0.68,130.95,130.93,5.02634521]
[1764683597186,0.68,130.95,130.91,28.97394729]
[1764683597675,0.68,130.95,130.92,5.02634521]